fUSD/lending_fUSD_20250209
["ID","MTS","AMOUNT","RATE_DAILY","PERIOD"]
[352400960,1739083846559,-500.0,0.00010547,2]
[352400961,1739083846569,-500.0,0.00010547,2]
[352400962,1739083846579,-500.0,0.00010547,2]
[352400963,1739083846590,-500.0,0.00010547,2]
[352400964,1739083846600,-649.27,0.00010547,2]
[352400965,1739083846610,-636.39,0.00010547,2]
[352400966,1739083846620,-500.0,0.00010547,2]
[352400967,1739083846631,-500.0,0.00010547,2]
[352400968,1739083846641,-500.0,0.00010547,2]
[352400969,1739083846651,-500.0,0.00010547,2]
[352400970,1739083846661,-500.0,0.00010547,2]
[352400971,1739083846671,-500.0,0.00010547,2]
[352400972,1739083846681,-500.0,0.00010547,2]
[352400973,1739083846691,-500.0,0.00010547,2]
[352400974,1739083846701,-500.0,0.00010547,2]
[352400975,1739083846712,-500.0,0.00010547,2]
[352400976,1739083846722,-500.0,0.00010547,2]
[352400977,1739083846731,-500.0,0.00010547,2]
[352400978,1739083846741,-500.0,0.00010547,2]
[352400979,1739083846750,-500.0,0.00010547,2]
[352400980,1739083846761,-500.0,0.00010547,2]
[352400981,1739083846770,-500.0,0.00010547,2]
[352400982,1739083846779,-500.0,0.00010547,2]
[352400983,1739083846793,-500.0,0.00010547,2]
[352400984,1739083846803,-500.0,0.00010547,2]
[352400985,1739083846812,-500.0,0.00010547,2]
[352400986,1739083846822,-500.0,0.00010547,2]
[352400987,1739083846831,-500.0,0.00010547,2]
[352400988,1739083846841,-500.0,0.00010547,2]
[352400990,1739083846851,-500.0,0.00010547,2]
[352400992,1739083846909,-510.32,0.00010547,2]
[352400993,1739083846919,-500.0,0.00010547,2]
[352400994,1739083846929,-500.0,0.00010547,2]
[352400995,1739083846939,-500.0,0.00010547,2]
[352400996,1739083846950,-500.0,0.00010547,2]
[352400997,1739083846963,-500.0,0.00010547,2]
[352400998,1739083846973,-204.73,0.00010547,2]
[352400999,1739083846982,-500.0,0.00010547,2]
[352401000,1739083846992,-500.0,0.00010547,2]
[352401001,1739083847003,-500.0,0.00010547,2]
[352401002,1739083847012,-500.0,0.00010547,2]
[352401003,1739083847022,-500.0,0.00010547,2]
[352401004,1739083847032,-500.0,0.00010547,2]
[352401005,1739083847042,-640.07,0.00010547,2]
[352401006,1739083847051,-500.0,0.00010547,2]
[352401007,1739083847061,-500.0,0.00010547,2]
[352401008,1739083847070,-871.67,0.00010547,2]
[352401009,1739083847080,-500.0,0.00010547,2]
[352401010,1739083847089,-500.0,0.00010547,2]
[352401011,1739083847098,-500.0,0.00010547,2]
[352401012,1739083847107,-500.0,0.00010547,2]
[352401013,1739083847117,-509.57457588,0.00010547,2]
[352401014,1739083847127,-500.0,0.00010547,2]
[352401015,1739083847136,-500.0,0.00010547,2]
[352401016,1739083847146,-500.0,0.00010547,2]
[352401017,1739083847155,-500.0,0.00010547,2]
[352401018,1739083847164,-500.0,0.00010547,2]
[352401019,1739083847174,-500.0,0.00010547,2]
[352401020,1739083847184,-479.66132285,0.00010547,2]
[352401021,1739083847194,-500.0,0.00010547,2]
[352401022,1739083847204,-718.58,0.00010547,2]
[352401023,1739083847214,-605.53,0.00010547,2]
[352401024,1739083847223,-942.81,0.00010547,2]
[352401025,1739083847234,-500.0,0.00010547,2]
[352401026,1739083847243,-500.0,0.00010547,2]
[352401027,1739083847253,-500.0,0.00010547,2]
[352401028,1739083847262,-500.0,0.00010547,2]
[352401029,1739083847272,-610.15551293,0.00010547,2]
[352401030,1739083847282,-500.0,0.00010547,2]
[352401031,1739083847295,-591.11,0.00010547,2]
[352401032,1739083847305,-500.0,0.00010547,2]
[352401033,1739083847314,-500.0,0.00010547,2]
[352401034,1739083847324,-500.0,0.00010547,2]
[352401035,1739083847334,-500.0,0.00010547,2]
[352401036,1739083847345,-746.13,0.00010547,2]
[352401037,1739083847355,-500.0,0.00010547,2]
[352401038,1739083847365,-500.0,0.00010547,2]
[352401039,1739083847374,-500.0,0.00010547,2]
[352401040,1739083847384,-505.78149203,0.00010547,2]
[352401041,1739083847393,-500.0,0.00010547,2]
[352401042,1739083847402,-500.0,0.00010547,2]
[352401043,1739083847412,-512.5,0.00010547,2]
[352401044,1739083847421,-500.0,0.00010547,2]
[352401045,1739083847432,-500.0,0.00010547,2]
[352401046,1739083847443,-500.0,0.00010547,2]
[352401047,1739083847453,-500.0,0.00010547,2]
[352401048,1739083847464,-504.51,0.00010547,2]
[352401049,1739083847474,-682.771845,0.00010547,2]
[352401050,1739083847485,-500.0,0.00010547,2]
[352401051,1739083847495,-500.0,0.00010547,2]
[352401052,1739083847505,-500.0,0.00010547,2]
[352401053,1739083847515,-500.0,0.00010547,2]
[352401054,1739083847526,-371.987791,0.00010547,2]
[352401055,1739083847539,-500.0,0.00010547,2]
[352401056,1739083847549,-500.0,0.00010547,2]
[352401057,1739083847559,-500.0,0.00010547,2]
[352401058,1739083847569,-500.0,0.00010547,2]
[352401059,1739083847580,-500.0,0.00010547,2]
[352401060,1739083847590,-500.0,0.00010547,2]
[352401061,1739083847602,-924.17,0.00010547,2]
[352401062,1739083847613,-500.0,0.00010547,2]
[352401063,1739083847624,-500.0,0.00010547,2]
[352401064,1739083847635,-500.0,0.00010547,2]
[352401065,1739083847645,-634.72,0.00010547,2]
[352401066,1739083847655,-500.0,0.00010547,2]
[352401067,1739083847665,-502.99762383,0.00010547,2]
[352401068,1739083847677,-500.0,0.00010547,2]
[352401069,1739083847688,-642.82610643,0.00010547,2]
[352401070,1739083847698,-500.0,0.00010547,2]
[352401071,1739083847709,-648.03,0.00010547,2]
[352401072,1739083847720,-500.0,0.00010547,2]
[352401073,1739083847731,-500.0,0.00010547,2]
[352401074,1739083847743,-500.0,0.00010547,2]
[352401075,1739083847754,-500.0,0.00010547,2]
[352401076,1739083847765,-500.0,0.00010547,2]
[352401077,1739083847775,-500.0,0.00010547,2]
[352401078,1739083847788,-500.0,0.00010547,2]
[352401079,1739083847800,-500.0,0.00010547,2]
[352401080,1739083847811,-500.0,0.00010547,2]
[352401081,1739083847822,-500.0,0.00010547,2]
[352401082,1739083847834,-168.43,0.0001055,2]
[352401083,1739083847845,-535.48590837,0.000106,2]
[352401084,1739083847855,-607.46,0.00010684,2]
[352401085,1739083847866,-500.0,0.00010684,2]
[352401086,1739083847877,-500.0,0.00010684,2]
[352401087,1739083847888,-500.0,0.00010684,2]
[352401088,1739083847899,-500.0,0.00010684,2]
[352401089,1739083847910,-500.0,0.00010684,2]
[352401090,1739083847921,-500.0,0.00010684,2]
[352401091,1739083847932,-500.0,0.00010684,2]
[352401092,1739083847943,-346.22913449,0.00010684,2]
[352401093,1739083847955,-500.0,0.00010684,2]
[352401094,1739083847967,-306.41,0.00010684,2]
[352401095,1739083847977,-500.0,0.00010684,2]
[352401096,1739083847988,-500.0,0.00010684,2]
[352401097,1739083847999,-500.0,0.00010684,2]
[352401098,1739083848009,-500.0,0.00010684,2]
[352401099,1739083848020,-500.0,0.00010684,2]
[352401100,1739083848031,-500.0,0.00010684,2]
[352401101,1739083848049,-500.0,0.00010684,2]
[352401102,1739083848059,-500.0,0.00010684,2]
[352401103,1739083848068,-500.0,0.00010684,2]
[352401104,1739083848078,-500.0,0.00010684,2]
[352401105,1739083848090,-646.16,0.00010684,2]
[352401106,1739083848101,-500.0,0.00010684,2]
[352401107,1739083848111,-625.9,0.00010684,2]
[352401108,1739083848121,-500.0,0.00010684,2]
[352401109,1739083848133,-493.37,0.00010684,2]
[352401110,1739083848143,-240.62,0.00010684,2]
[352401111,1739083848154,-500.0,0.00010684,2]
[352401112,1739083848165,-500.0,0.00010684,2]
[352401113,1739083848176,-500.0,0.00010684,2]
[352401114,1739083848186,-500.0,0.00010684,2]
[352401115,1739083848197,-500.0,0.00010684,2]
[352401116,1739083848209,-500.0,0.00010684,2]
[352401117,1739083848220,-500.0,0.00010684,2]
[352401118,1739083848231,-500.0,0.00010684,2]
[352401119,1739083848242,-500.0,0.00010684,2]
[352401120,1739083848252,-500.0,0.00010684,2]
[352401121,1739083848263,-500.0,0.00010684,2]
[352401122,1739083848274,-500.0,0.00010684,2]
[352401123,1739083848291,-500.0,0.00010684,2]
[352401124,1739083848303,-500.0,0.00010684,2]
[352401125,1739083848315,-500.0,0.00010684,2]
[352401126,1739083848325,-500.0,0.00010684,2]
[352401127,1739083848343,-500.0,0.00010684,2]
[352401128,1739083848355,-500.0,0.00010684,2]
[352401129,1739083848365,-640.07,0.00010684,2]
[352401130,1739083848376,-500.0,0.00010684,2]
[352401131,1739083848387,-500.0,0.00010684,2]
[352401132,1739083848399,-871.67,0.00010684,2]
[352401133,1739083848409,-500.0,0.00010684,2]
[352401134,1739083848420,-500.0,0.00010684,2]
[352401135,1739083848430,-626.56,0.00010684,2]
[352401136,1739083848440,-500.0,0.00010684,2]
[352401137,1739083848450,-500.0,0.00010684,2]
[352401138,1739083848459,-500.0,0.00010684,2]
[352401139,1739083848469,-500.0,0.00010684,2]
[352401140,1739083848478,-500.0,0.00010684,2]
[352401141,1739083848488,-500.0,0.00010684,2]
[352401142,1739083848499,-521.61,0.00010684,2]
[352401143,1739083848509,-718.58,0.00010684,2]
[352401144,1739083848520,-605.53,0.00010684,2]
[352401145,1739083848530,-942.81,0.00010684,2]
[352401146,1739083848544,-500.0,0.00010684,2]
[352401147,1739083848554,-500.0,0.00010684,2]
[352401148,1739083848564,-500.0,0.00010684,2]
[352401149,1739083848576,-500.0,0.00010684,2]
[352401150,1739083848586,-591.11,0.00010684,2]
[352401151,1739083848597,-500.0,0.00010684,2]
[352401152,1739083848607,-500.0,0.00010684,2]
[352401153,1739083848617,-500.0,0.00010684,2]
[352401154,1739083848627,-746.13,0.00010684,2]
[352401155,1739083848637,-500.0,0.00010684,2]
[352401156,1739083848647,-500.0,0.00010684,2]
[352401157,1739083848658,-500.0,0.00010684,2]
[352401158,1739083848668,-512.5,0.00010684,2]
[352401159,1739083848678,-500.0,0.00010684,2]
[352401160,1739083848689,-566.77,0.00010684,2]
[352401161,1739083848700,-500.0,0.00010684,2]
[352401162,1739083848711,-504.51,0.00010684,2]
[352401163,1739083848722,-682.771845,0.00010684,2]
[352401164,1739083848733,-500.0,0.00010684,2]
[352401165,1739083848743,-436.34270129,0.00010684,2]
[352401166,1739083848754,-500.0,0.00010684,2]
[352401167,1739083848763,-500.0,0.00010684,2]
[352401168,1739083848774,-500.0,0.00010684,2]
[352401169,1739083848784,-530.22,0.00010684,2]
[352401170,1739083848799,-500.0,0.00010684,2]
[352401171,1739083848811,-500.0,0.00010684,2]
[352401172,1739083848821,-500.0,0.00010684,2]
[352401173,1739083848833,-525.81851231,0.00010684,2]
[352401174,1739083848844,-924.17,0.00010684,2]
[352401175,1739083848855,-500.0,0.00010684,2]
[352401176,1739083848866,-500.0,0.00010684,2]
[352401177,1739083848877,-634.72,0.00010684,2]
[352401178,1739083848888,-500.0,0.00010684,2]
[352401179,1739083848899,-500.0,0.00010684,2]
[352401180,1739083848909,-500.0,0.00010684,2]
[352401181,1739083848920,-648.03,0.00010684,2]
[352401182,1739083848931,-500.0,0.00010684,2]
[352401183,1739083848942,-500.0,0.00010684,2]
[352401184,1739083848955,-500.0,0.00010684,2]
[352401185,1739083848968,-500.0,0.00010684,2]
[352401186,1739083848978,-500.0,0.00010684,2]
[352401187,1739083848991,-500.0,0.00010684,2]
[352401188,1739083849002,-500.0,0.00010684,2]
[352401189,1739083849013,-500.0,0.00010684,2]
[352401190,1739083849023,-500.0,0.00010684,2]
[352401191,1739083849033,-173.97,0.00010772,2]
[352401192,1739083849046,-214.38644033,0.000108,2]
[352401193,1739083849056,-607.46,0.00010821,2]
[352401194,1739083849066,-195.69,0.00010821,2]
[352401195,1739083849076,-526.85,0.00010821,2]
[352401196,1739083849087,-541.09,0.00010821,2]
[352401197,1739083849097,-561.97,0.00010821,2]
[352401198,1739083849108,-500.0,0.00010821,2]
[352401199,1739083849118,-500.0,0.00010821,2]
[352401200,1739083849128,-618.57,0.00010821,2]
[352401201,1739083849139,-500.0,0.00010821,2]
[352401202,1739083849149,-500.0,0.00010821,2]
[352401203,1739083849159,-500.0,0.00010821,2]
[352401204,1739083849169,-500.0,0.00010821,2]
[352401205,1739083849179,-500.0,0.00010821,2]
[352401206,1739083849189,-500.0,0.00010821,2]
[352401207,1739083849199,-500.0,0.00010821,2]
[352401208,1739083849210,-500.0,0.00010821,2]
[352401209,1739083849220,-500.0,0.00010821,2]
[352401210,1739083849229,-500.0,0.00010821,2]
[352401211,1739083849239,-500.0,0.00010821,2]
[352401212,1739083849248,-500.0,0.00010821,2]
[352401213,1739083849259,-343.59362951,0.00010821,2]
[352401214,1739083849269,-500.0,0.00010821,2]
[352401215,1739083849279,-500.0,0.00010821,2]
[352401216,1739083849292,-500.0,0.00010821,2]
[352401217,1739083849303,-500.0,0.00010821,2]
[352401218,1739083849314,-500.0,0.00010821,2]
[352401219,1739083849324,-500.0,0.00010821,2]
[352401220,1739083849334,-500.0,0.00010821,2]
[352401221,1739083849345,-500.0,0.00010821,2]
[352401222,1739083849355,-500.0,0.00010821,2]
[352401223,1739083849365,-500.0,0.00010821,2]
[352401224,1739083849375,-500.0,0.00010821,2]
[352401225,1739083849385,-463.33,0.00010821,2]
[352401226,1739083849395,-500.0,0.00010821,2]
[352401227,1739083849406,-500.0,0.00010821,2]
[352401228,1739083849417,-500.0,0.00010821,2]
[352401229,1739083849427,-500.0,0.00010821,2]
[352401230,1739083849437,-500.0,0.00010821,2]
[352401231,1739083849448,-500.0,0.00010821,2]
[352401232,1739083849459,-640.07,0.00010821,2]
[352401233,1739083849469,-500.0,0.00010821,2]
[352401234,1739083849478,-500.0,0.00010821,2]
[352401235,1739083849489,-871.67,0.00010821,2]
[352401236,1739083849500,-500.0,0.00010821,2]
[352401237,1739083849510,-500.0,0.00010821,2]
[352401238,1739083849520,-500.0,0.00010821,2]
[352401239,1739083849529,-500.0,0.00010821,2]
[352401240,1739083849541,-500.0,0.00010821,2]
[352401241,1739083849550,-516.47691271,0.00010821,2]
[352401242,1739083849560,-500.0,0.00010821,2]
[352401243,1739083849570,-500.0,0.00010821,2]
[352401244,1739083849580,-718.58,0.00010821,2]
[352401245,1739083849590,-605.53,0.00010821,2]
[352401246,1739083849599,-942.81,0.00010821,2]
[352401247,1739083849609,-524.1,0.00010821,2]
[352401248,1739083849618,-606.49,0.00010821,2]
[352401249,1739083849628,-500.0,0.00010821,2]
[352401250,1739083849639,-500.0,0.00010821,2]
[352401251,1739083849648,-591.11,0.00010821,2]
[352401252,1739083849658,-500.0,0.00010821,2]
[352401253,1739083849668,-500.0,0.00010821,2]
[352401254,1739083849678,-500.0,0.00010821,2]
[352401255,1739083849688,-746.13,0.00010821,2]
[352401256,1739083849698,-500.0,0.00010821,2]
[352401257,1739083849708,-500.0,0.00010821,2]
[352401258,1739083849718,-512.5,0.00010821,2]
[352401259,1739083849728,-500.0,0.00010821,2]
[352401260,1739083849739,-500.0,0.00010821,2]
[352401261,1739083849748,-504.51,0.00010821,2]
[352401262,1739083849759,-682.771845,0.00010821,2]
[352401263,1739083849769,-500.0,0.00010821,2]
[352401264,1739083849778,-512.52,0.00010821,2]
[352401265,1739083849790,-500.0,0.00010821,2]
[352401266,1739083849800,-163.888335,0.00010821,2]
[352401267,1739083849810,-500.0,0.00010821,2]
[352401268,1739083849820,-500.0,0.00010821,2]
[352401269,1739083849830,-500.0,0.00010821,2]
[352401270,1739083849841,-924.17,0.00010821,2]
[352401271,1739083849851,-570.33,0.00010821,2]
[352401272,1739083849861,-599.04,0.00010821,2]
[352401273,1739083849872,-156.680193,0.00010821,2]
[352401274,1739083849882,-634.72,0.00010821,2]
[352401275,1739083849892,-500.0,0.00010821,2]
[352401276,1739083849902,-500.0,0.00010821,2]
[352401277,1739083849912,-648.03,0.00010821,2]
[352401278,1739083849923,-500.0,0.00010821,2]
[352401279,1739083849933,-500.0,0.00010821,2]
[352401280,1739083849943,-500.0,0.00010821,2]
[352401281,1739083849954,-500.0,0.00010821,2]
[352401282,1739083849967,-500.0,0.00010821,2]
[352401283,1739083849977,-500.0,0.00010821,2]
[352401284,1739083849987,-558.66,0.00010821,2]
[352401285,1739083849997,-500.0,0.00010821,2]
[352401286,1739083850007,-46531.73479737,0.00010824,2]
[352401287,1739083850017,-637.86477547,0.00010824,2]
[352401288,1739083850027,-201.1385935,0.00010825,2]
[352401289,1739083850039,-245.17218768,0.00010825,2]
[352401290,1739083850049,-19823.33908782,0.00010829,2]
[352401291,1739083850059,-17416.3487738,0.0001083,2]
[352401292,1739083850068,-1204.62020728,0.0001083,2]
[352401293,1739083850078,-200.0,0.00010832,2]
[352401294,1739083850088,-662.94306602,0.00010832,2]
[352401295,1739083850098,-19823.33908782,0.00010832,2]
[352401296,1739083850107,-1360.12927842,0.00010834,2]
[352401297,1739083850117,-17416.3487738,0.00010835,2]
[352401298,1739083850127,-46531.73479737,0.00010835,2]
[352401299,1739083850137,-216.96927998,0.00010836,2]
[352401300,1739083850146,-1360.12927842,0.00010836,2]
[352401301,1739083850156,-1204.62020728,0.00010839,2]
[352401302,1739083850166,-201.1385935,0.00010839,2]
[352401303,1739083850176,-216.96927998,0.00010844,2]
[352401304,1739083850185,-637.86477547,0.00010844,2]
[352401305,1739083850194,-90565.71057829,0.00010844,2]
[352401306,1739083850204,-1360.12927842,0.00010845,2]
[352401307,1739083850213,-245.17218768,0.00010845,2]
[352401308,1739083850223,-200.0,0.00010846,2]
[352401309,1739083850233,-5521.37964281,0.00010849,2]
[352401310,1739083850243,-2201.06681066,0.00010849,2]
[352401311,1739083850252,-662.94306602,0.0001085,2]
[352401312,1739083850262,-90565.71057829,0.00010852,2]
[352401313,1739083850272,-662.94306602,0.00010853,2]
[352401314,1739083850281,-2201.06681066,0.00010854,2]
[352401315,1739083850293,-1204.62020728,0.00010856,2]
[352401316,1739083850303,-637.86477547,0.00010857,2]
[352401317,1739083850313,-17416.3487738,0.00010858,2]
[352401318,1739083850322,-2201.06681066,0.00010859,2]
[352401319,1739083850332,-5521.37964281,0.00010861,2]
[352401320,1739083850341,-201.1385935,0.00010862,2]
[352401321,1739083850351,-200.0,0.00010863,2]
[352401322,1739083850360,-200.0,0.00010869,2]
[352401323,1739083850370,-19823.33908782,0.00010871,2]
[352401324,1739083850380,-2201.06681066,0.00010873,2]
[352401325,1739083850390,-201.1385935,0.00010873,2]
[352401326,1739083850406,-1204.62020728,0.00010874,2]
[352401327,1739083850417,-46531.73479737,0.00010876,2]
[352401328,1739083850427,-637.86477547,0.00010877,2]
[352401329,1739083850437,-90565.71057829,0.00010878,2]
[352401330,1739083850447,-46531.73479737,0.00010881,2]
[352401331,1739083850457,-5521.37964281,0.00010882,2]
[352401332,1739083850466,-200.0,0.00010884,2]
[352401333,1739083850475,-216.96927998,0.00010885,2]
[352401334,1739083850485,-19823.33908782,0.00010887,2]
[352401335,1739083850495,-245.17218768,0.00010888,2]
[352401336,1739083850505,-245.17218768,0.00010889,2]
[352401337,1739083850514,-1360.12927842,0.00010889,2]
[352401338,1739083850524,-17416.3487738,0.0001089,2]
[352401339,1739083850533,-216.96927998,0.00010894,2]
[352401340,1739083850543,-200.0,0.00010897,2]
[352401341,1739083850552,-90565.71057829,0.00010898,2]
[352401342,1739083850562,-662.94306602,0.00010899,2]
[352401343,1739083850572,-5521.37964281,0.00010899,2]
[352401344,1739083850581,-1272.0,0.00010926,2]
[352401345,1739083850591,-2023.0,0.00010926,2]
[352401346,1739083850600,-152.02,0.00010926,2]
[352401347,1739083850610,-638.0,0.00010926,2]
[352401348,1739083850620,-661.828,0.00010926,2]
[352401349,1739083850630,-1949.0,0.00010926,2]
[352401350,1739083850640,-2954.0,0.00010926,2]
[352401351,1739083850650,-916.364,0.00010926,2]
[352401352,1739083850660,-1264.0,0.00010926,2]
[352401353,1739083850670,-783.0,0.00010926,2]
[352401354,1739083850680,-539.0,0.00010926,2]
[352401355,1739083850690,-1007.0,0.00010926,2]
[352401356,1739083850701,-3912.0,0.00010926,2]
[352401357,1739083850712,-155.924,0.00010926,2]
[352401358,1739083850722,-1965.61703398,0.00010935,2]
[352401359,1739083850731,-607.46,0.00010958,2]
[352401360,1739083850745,-500.0,0.00010958,2]
[352401361,1739083850759,-500.0,0.00010958,2]
[352401362,1739083850771,-252.75,0.00010958,2]
[352401363,1739083850781,-500.0,0.00010958,2]
[352401364,1739083850793,-500.0,0.00010958,2]
[352401365,1739083850803,-500.0,0.00010958,2]
[352401366,1739083850813,-500.0,0.00010958,2]
[352401367,1739083850827,-500.0,0.00010958,2]
[352401368,1739083850837,-500.0,0.00010958,2]
[352401369,1739083850847,-632.09,0.00010958,2]
[352401370,1739083850856,-299.79,0.00010958,2]
[352401371,1739083850866,-500.0,0.00010958,2]
[352401372,1739083850875,-500.0,0.00010958,2]
[352401373,1739083850885,-500.0,0.00010958,2]
[352401374,1739083850895,-500.0,0.00010958,2]
[352401375,1739083850904,-500.0,0.00010958,2]
[352401376,1739083850914,-500.0,0.00010958,2]
[352401377,1739083850923,-500.0,0.00010958,2]
[352401378,1739083850934,-500.0,0.00010958,2]
[352401379,1739083850944,-500.0,0.00010958,2]
[352401380,1739083850955,-500.0,0.00010958,2]
[352401381,1739083850968,-500.0,0.00010958,2]
[352401382,1739083850978,-500.0,0.00010958,2]
[352401383,1739083850989,-500.0,0.00010958,2]
[352401384,1739083850999,-186.93,0.00010958,2]
[352401385,1739083851010,-500.0,0.00010958,2]
[352401386,1739083851022,-482.78,0.00010958,2]
[352401387,1739083851032,-500.0,0.00010958,2]
[352401388,1739083851044,-500.0,0.00010958,2]
[352401389,1739083851054,-500.0,0.00010958,2]
[352401390,1739083851064,-500.0,0.00010958,2]
[352401391,1739083851074,-640.07,0.00010958,2]
[352401392,1739083851083,-500.0,0.00010958,2]
[352401393,1739083851093,-500.0,0.00010958,2]
[352401394,1739083851103,-871.67,0.00010958,2]
[352401395,1739083851112,-500.0,0.00010958,2]
[352401396,1739083851122,-500.0,0.00010958,2]
[352401397,1739083851133,-500.0,0.00010958,2]
[352401398,1739083851142,-500.0,0.00010958,2]
[352401399,1739083851152,-500.0,0.00010958,2]
[352401400,1739083851163,-438.16,0.00010958,2]
[352401401,1739083851174,-500.0,0.00010958,2]
[352401402,1739083851185,-718.58,0.00010958,2]
[352401403,1739083851195,-605.53,0.00010958,2]
[352401404,1739083851204,-942.81,0.00010958,2]
[352401405,1739083851215,-500.0,0.00010958,2]
[352401406,1739083851226,-500.0,0.00010958,2]
[352401407,1739083851237,-591.11,0.00010958,2]
[352401408,1739083851249,-326.92,0.00010958,2]
[352401409,1739083851418,-500.0,0.00010958,2]
[352401410,1739083851429,-464.61,0.00010958,2]
[352401411,1739083851438,-746.13,0.00010958,2]
[352401412,1739083851448,-500.0,0.00010958,2]
[352401413,1739083851458,-500.0,0.00010958,2]
[352401414,1739083851467,-512.5,0.00010958,2]
[352401415,1739083851477,-500.0,0.00010958,2]
[352401416,1739083851487,-500.0,0.00010958,2]
[352401417,1739083851497,-504.51,0.00010958,2]
[352401418,1739083851506,-682.771845,0.00010958,2]
[352401419,1739083851516,-500.0,0.00010958,2]
[352401420,1739083851526,-500.0,0.00010958,2]
[352401421,1739083851536,-500.0,0.00010958,2]
[352401422,1739083851546,-500.0,0.00010958,2]
[352401423,1739083851555,-500.0,0.00010958,2]
[352401424,1739083851565,-924.17,0.00010958,2]
[352401425,1739083851575,-634.72,0.00010958,2]
[352401426,1739083851585,-500.0,0.00010958,2]
[352401427,1739083851595,-500.0,0.00010958,2]
[352401428,1739083851604,-648.03,0.00010958,2]
[352401429,1739083851614,-500.0,0.00010958,2]
[352401430,1739083851624,-500.0,0.00010958,2]
[352401431,1739083851634,-500.0,0.00010958,2]
[352401432,1739083851644,-282.89,0.00010958,2]
[352401433,1739083851655,-500.0,0.00010958,2]
[352401434,1739083851664,-271.81,0.00010958,2]
[352401435,1739083851674,-500.0,0.00010958,2]
[352401436,1739083851684,-4000.0,0.00010959,2]
[352401437,1739083851696,-150.0,0.00010959,2]
[352401438,1739083851713,-151.7,0.00010984,2]
[352401439,1739083851731,-300.0,0.00010999,2]
[352401440,1739083851742,-300.0,0.00010999,2]
[352401441,1739083851753,-300.0,0.00010999,2]
[352401442,1739083851762,-161015.75566048,0.00011,2]
[352401443,1739083851772,-5396.08780009,0.00011,2]
[352401444,1739083851782,-2454.0,0.00011016,2]
[352401445,1739083851793,-607.46,0.00011095,2]
[352401446,1739083851803,-474.14,0.00011095,2]
[352401447,1739083851813,-500.0,0.00011095,2]
[352401448,1739083851824,-500.0,0.00011095,2]
[352401449,1739083851834,-500.0,0.00011095,2]
[352401450,1739083851844,-500.0,0.00011095,2]
[352401451,1739083851853,-500.0,0.00011095,2]
[352401452,1739083851863,-500.0,0.00011095,2]
[352401453,1739083851873,-500.0,0.00011095,2]
[352401454,1739083851883,-551.33,0.00011095,2]
[352401455,1739083851893,-500.0,0.00011095,2]
[352401456,1739083851903,-500.0,0.00011095,2]
[352401457,1739083851912,-628.07,0.00011095,2]
[352401458,1739083851922,-500.0,0.00011095,2]
[352401459,1739083851932,-500.0,0.00011095,2]
[352401460,1739083851941,-500.0,0.00011095,2]
[352401461,1739083851956,-500.0,0.00011095,2]